[Event "Chinese League Div-A Rapid 2022"]
[Site "Fuling,Chongqing"]
[Date "2022.09.10"]
[Round "4.17"]
[White "Pang, Tao"]
[Black "Zhao, Yuanhe"]
[Result "1/2-1/2"]
[ECO "B38"]
[WhiteElo "2427"]
[BlackElo "2440"]
[Annotator "TA"]
[PlyCount "83"]
[EventDate "2022.09.07"]
[EventType "team-tourn"]
[EventCountry "CHN"]
[SourceTitle "playchess.com"]
[Source "ChessBase"]
[SourceQuality "1"]
[TimeControl "1500+10"]

{[%evp 23,83,41,43,40,36,37,42,37,38,41,42,36,39,18,18,18,0,16,43,37,46,43,66,58,64,65,136,140,126,129,179,171,191,218,247,249,230,134,136,121,130,58,70,29,41,0,0,0,0,0,0,0,0,-10,-10,-12,0,0,0,0,0,-7]} 1. Nf3 {[%emt 0:00:02]} c5 {[%emt 0:00:04]} 2. c4 {[%emt 0:00:09]} Nc6 {[%emt 0:00:05]} 3. d4 {[%emt 0:00:01]} cxd4 {[%emt 0:00:16]} 4. Nxd4 {[%emt 0:00:00]} g6 {[%emt 0:00:35]} 5. e4 {[%emt 0:00:03]} Bg7 {[%emt 0:00:02]} 6. Be3 {[%emt 0:00:01]} Nf6 {[%emt 0:00:06]} 7. Nc3 {[%emt 0:00:03]} O-O {[%emt 0:00:06]} 8. Be2 {[%emt 0:00:01]} d6 {[%emt 0:00:03]} 9. O-O {[%emt 0:00:01]} Bd7 {[%emt 0:00:04]} 10. Qd2 {[%emt 0:00:01]} Ng4 {[%emt 0:01:29]} 11. Bxg4 {[%emt 0:00:06]} Bxg4 {[%emt 0:00:04]} 12. f3 {[%emt 0:00:39]} Bd7 {[%emt 0:00:03]} 13. Rac1 {[%emt 0:00:16] B38: Sicilian: Maroczy Bind with 5...Bg7 and 7...0-0.} Rc8 {[%emt 0:03:48]} 14. b3 {[%emt 0:00:12]} Nxd4 {[%emt 0:01:47]} 15. Bxd4 {[%emt 0:00:01] White is slightly better.} Qa5 {[%emt 0:00:11]} 16. Rfd1 {[%emt 0:00:39]} Bxd4+ {[%emt 0:00:26]} 17. Qxd4 {[%emt 0:00:02][%cal Oe4e5] [#]} Bc6 $146 {[%emt 0:00:02]} ({Predecessor:} 17... Qc5 18. e5 Be6 19. exd6 Qxd4+ 20. Rxd4 Rfd8 21. Rcd1 exd6 22. Rxd6 Rxd6 23. Rxd6 Kf8 {1-0 (45) Metin,M (2170)-Yigit,A (1943) Antalya 2017}) 18. Rb1 {[%emt 0:00:38]} Qc5 {[%emt 0:00:12]} 19. Kf1 {[%emt 0:02:17]} Qxd4 {[%emt 0:00:12]} 20. Rxd4 {[%emt 0:00:01]} a6 {[%emt 0:00:03]} 21. a4 {[%emt 0:01:59]} a5 {[%emt 0:00:13]} 22. Nd5 {[%emt 0:00:10]} Rfe8 {[%emt 0:00:34]} 23. Nb6 {[%emt 0:00:18] White is more active.} Rc7 {[%emt 0:00:23]} 24. Rc1 {[%emt 0:00:44]} f5 {[%emt 0:02:37]} (24... Rb8 $14) 25. exf5 $16 {[%emt 0:00:03]} gxf5 {[%emt 0:00:02]} 26. c5 {[%emt 0:00:39]} dxc5 {[%emt 0:02:17]} (26... Kf7 $16) 27. Rxc5 $18 {[%emt 0:00:03]} e5 {[%emt 0:00:03]} 28. Rd6 {[%emt 0:03:35] Hoping for Nd5.} Rf7 {[%emt 0:01:44]} 29. Nc4 {[%emt 0:01:39]} (29. Rxa5 $6 e4) 29... e4 {[%emt 0:00:49]} 30. Ne5 {[%emt 0:01:14]} ({Don't play} 30. Nxa5 $6 exf3 31. Nxc6 fxg2+ 32. Kxg2 bxc6) (30. f4 $18) 30... exf3 $16 {[%emt 0:00:18]} 31. gxf3 {[%emt 0:00:01]} ({Much less strong is} 31. Nxc6 fxg2+ 32. Kxg2 bxc6 $14) 31... Rfe7 {[%emt 0:00:01]} 32. f4 {[%emt 0:01:09]} (32. Nxc6 $16 bxc6 33. Rxa5) 32... Be4 $14 {[%emt 0:00:10]} 33. Rc3 {[%emt 0:04:05]} Rg7 {[%emt 0:01:28]} 34. Nd7 {[%emt 0:00:44] [#] Nf6+ is the strong threat.} (34. h4 $5 {[%cal Rh4h5]}) 34... Kh8 $1 {[%emt 0:00:29] The position is equal.} ({Don't take} 34... Bg2+ 35. Kf2 Kf7 36. Nf6 $16) 35. Nf6 {[%emt 0:01:08]} Rf8 {[%emt 0:00:14]} 36. Nh5 {[%emt 0:01:52]} Rg6 {[%emt 0:01:02]} 37. Rd7 {[%emt 0:01:25]} Bg2+ {[%emt 0:00:12]} 38. Ke1 $1 {[%emt 0:00:50]} Bc6 {[%emt 0:00:05]} 39. Re7 {[%emt 0:00:01]} Rg1+ {[%emt 0:01:52]} 40. Kd2 {[%emt 0:00:02]} Rg2+ {[%emt 0:00:04]} 41. Re2 $1 {[%emt 0:00:22]} Rd8+ {[%emt 0:00:16]} 42. Ke1 {[%emt 0:00:01] Black defended with fortune.  Weighted Error Value: White=0.10 (very precise) /Black=0.08 (flawless)} 1/2-1/2

[Event "Chinese League Div-A Rapid 2022"]
[Site "Fuling,Chongqing"]
[Date "2022.09.10"]
[Round "4.18"]
[White "Wang, Hao B"]
[Black "Li, Di"]
[Result "0-1"]
[ECO "A04"]
[WhiteElo "2165"]
[BlackElo "2575"]
[Annotator "TA"]
[PlyCount "76"]
[EventDate "2022.09.07"]
[EventType "team-tourn"]
[EventCountry "CHN"]
[SourceTitle "playchess.com"]
[Source "ChessBase"]
[SourceQuality "1"]
[TimeControl "1500+10"]

{[%evp 15,76,-25,-9,-25,-25,-66,-58,-51,-67,-55,-57,-74,-77,-85,-89,-98,-94,-104,-99,-101,-114,-108,-118,-139,-138,-132,-122,-213,-216,-210,-210,-402,-288,-766,-760,-763,-761,-2049,-2000,-1955,-1915,-1985,-1064,-1766,-633,-853,-665,-656,-655,-641,-616,-758,-743,-750,-743,-741,-739,-754,-747,-733,-721,-737,-644]} 1. Nf3 {[%emt 0:00:02]} c5 {[%emt 0:00:11]} 2. g3 {[%emt 0:00:03]} g6 {[%emt 0:00:10]} 3. Bg2 {[%emt 0:00:03]} Bg7 {[%emt 0:00:02]} 4. O-O {[%emt 0:00:04]} Nc6 {[%emt 0:00:03]} 5. c3 {[%emt 0:00:24][%cal Bc2c3,Bc3c4][%mdl 32]} e5 {[%emt 0:00:16]} 6. d3 {[%emt 0:00:23]} Nge7 {[%emt 0:00:08]} 7. c4 {[%emt 0:00:13]} O-O {[%emt 0:00:38]} 8. Nc3 {[%emt 0:00:02][%cal Bb1c3,Bc3e4,Be4g5][%mdl 32]} d6 {[%emt 0:00:09]} 9. Ne1 {[%emt 0:02:53] A04: Unusual lines after 1 Nf3 and King's Indian Attack.} Be6 {[%emt 0:00:05]} 10. Nc2 {[%emt 0:00:03] [#]} d5 $146 {[%emt 0:00:11]} ({Predecessor:} 10... Qd7 11. Nd5 Bh3 12. Bg5 f6 13. Nxe7+ Nxe7 14. Bd2 h5 15. Rb1 h4 16. f3 hxg3 17. hxg3 {½-½ (59) Soundarya,K (1572)-Krishna,U (1879) Bhubaneswar 2013}) 11. cxd5 {[%emt 0:00:10] Black is slightly better.} Nxd5 {[%emt 0:00:02]} 12. Ne3 {[%emt 0:00:17][%cal Re3d5]} Nde7 {[%emt 0:00:08]} 13. Ne4 {[%emt 0:00:28] [#]} b6 {[%emt 0:00:06]} 14. Ng5 {[%emt 0:00:25]} Bc8 {[%emt 0:00:59]} 15. Nc4 {[%emt 0:00:15]} h6 {[%emt 0:00:44]} 16. Ne4 {[%emt 0:00:07]} Be6 {[%emt 0:00:45]} 17. a4 {[%emt 0:02:25]} f5 {[%emt 0:01:43]} 18. Nc3 {[%emt 0:00:45][%cal Oa4a5]} ({Of course not} 18. Ned6 Qb8 19. Nb5 Bxc4 20. dxc4 Rd8 21. Bd5+ Kh7 $15) 18... Rb8 {[%emt 0:00:43]} 19. h4 {[%emt 0:04:50]} Qd7 {[%emt 0:00:28]} 20. Bd2 {[%emt 0:01:03]} Kh7 {[%emt 0:01:11]} 21. Kh2 {[%emt 0:03:09]} (21. Rc1 $17) 21... Rbd8 $19 {[%emt 0:00:53] Hoping for ...Bxc4.} 22. b3 {[%emt 0:02:32]} e4 $1 {[%emt 0:00:32]} 23. Nb2 $2 {[%emt 0:01:06]} (23. Rc1) 23... Ne5 {[%emt 0:01:07]} 24. Re1 $2 {[%emt 0:01:34]} (24. Rc1) 24... Ng4+ {[%emt 0:00:36] Black is clearly winning.} 25. Kg1 {[%emt 0:00:05]} e3 {[%emt 0:00:55]} 26. fxe3 {[%emt 0:00:10]} Qc7 {[%emt 0:00:16]} 27. Rf1 {[%emt 0:03:07]} Qxg3 {[%emt 0:00:04][%csl Gg4][%cal Rg3h2] [#]} 28. Rf3 {[%emt 0:00:02]} Qh2+ {[%emt 0:00:10]} 29. Kf1 {[%emt 0:00:02]} Qxh4 {[%emt 0:00:08]} (29... f4 $142 30. e4 Bd4) 30. Be1 {[%emt 0:00:30]} Nh2+ {[%emt 0:00:36]} 31. Kg1 {[%emt 0:00:02]} Nxf3+ {[%emt 0:00:04]} 32. exf3 {[%emt 0:00:10]} Qf6 {[%emt 0:00:40] Strongly threatening ...f4.} 33. Rc1 {[%emt 0:00:16]} f4 {[%emt 0:00:07]} 34. e4 {[%emt 0:00:10]} Nc6 {[%emt 0:00:10][%cal Be7c6,Bc6b4,Bb4d3][%mdl 32]} 35. Nc4 {[%emt 0:00:05]} Nb4 {[%emt 0:00:16]} 36. e5 {[%emt 0:00:07]} Qe7 {[%emt 0:00:11]} 37. Qe2 {[%emt 0:00:48]} Nxd3 {[%emt 0:00:33]} 38. Rd1 {[%emt 0:00:01]} Bxc4 {[%emt 0:02:01] White got outplayed after the opening.  Weighted Error Value: White=0.60/Black=0.23 (precise)} 0-1

[Event "Chinese League Div-A Rapid 2022"]
[Site "Fuling,Chongqing"]
[Date "2022.09.10"]
[Round "4.19"]
[White "Chu, Ruotong"]
[Black "Shao, Qiyu"]
[Result "1-0"]
[ECO "E04"]
[WhiteElo "2185"]
[BlackElo "1467"]
[Annotator "RC"]
[PlyCount "63"]
[EventDate "2022.09.07"]
[EventType "team-tourn"]
[EventCountry "CHN"]
[SourceTitle "playchess.com"]
[Source "ChessBase"]
[SourceQuality "1"]
[TimeControl "1500+10"]

1. Nf3 {[%emt 0:00:04]} Nf6 {[%emt 0:00:02]} 2. g3 {[%emt 0:00:05]} d5 {[%emt 0:00:02]} 3. Bg2 {[%emt 0:00:14]} c5 {[%emt 0:00:13]} 4. O-O {[%emt 0:00:52]} Nc6 {[%emt 0:00:07]} 5. d4 {[%emt 0:00:01]} e6 {[%emt 0:00:22]} 6. c4 {[%emt 0:00:29]} dxc4 {[%emt 0:00:45]} 7. Qa4 {[%emt 0:02:10]} Be7 {[%emt 0:01:24]} 8. Rd1 {[%emt 0:01:18]} O-O {[%emt 0:00:28]} 9. dxc5 {[%emt 0:05:30]} Qa5 {[%emt 0:00:09]} 10. Qxc4 {[%emt 0:00:27]} Qxc5 {[%emt 0:00:04]} 11. Qxc5 {[%emt 0:00:26]} Bxc5 {[%emt 0:00:02]} 12. Nc3 {[%emt 0:00:01]} h6 {[%emt 0:00:31]} 13. Bf4 {[%emt 0:00:50]} Re8 {[%emt 0:02:06]} 14. Na4 {[%emt 0:04:33]} Bf8 {[%emt 0:01:26]} 15. Ne5 {[%emt 0:00:15]} Nxe5 {[%emt 0:00:27]} 16. Bxe5 {[%emt 0:00:02]} Ng4 {[%emt 0:01:47]} 17. Bd6 {[%emt 0:00:45]} Bxd6 {[%emt 0:01:57]} 18. Rxd6 {[%emt 0:00:03]} Rb8 {[%emt 0:00:10]} 19. Rc1 {[%emt 0:01:13]} b5 {[%emt 0:08:48]} 20. Nc5 {[%emt 0:00:34]} e5 {[%emt 0:01:03]} 21. Nd7 {[%emt 0:03:18]} Bxd7 {[%emt 0:00:50]} 22. Rxd7 {[%emt 0:00:01]} Rbd8 {[%emt 0:02:58]} 23. Rcd1 {[%emt 0:02:08]} Rxd7 {[%emt 0:00:34]} 24. Rxd7 {[%emt 0:00:02]} e4 {[%emt 0:02:38]} 25. Rxa7 {[%emt 0:00:03]} Nf6 {[%emt 0:00:07]} 26. Rb7 {[%emt 0:00:54]} Re5 {[%emt 0:00:03]} 27. e3 {[%emt 0:00:54]} Ng4 {[%emt 0:00:24]} 28. h3 {[%emt 0:00:26]} Nf6 {[%emt 0:00:05]} 29. Bf1 {[%emt 0:00:02]} Rh5 {[%emt 0:00:10]} 30. Rxb5 {[%emt 0:00:15]} g5 {[%emt 0:00:11]} 31. Be2 {[%emt 0:00:28]} Rxh3 {[%emt 0:00:08]} 32. Kg2 {[%emt 0:00:02]} 1-0

[Event "Chinese League Div-A Rapid 2022"]
[Site "Fuling,Chongqing"]
[Date "2022.09.10"]
[Round "4.20"]
[White "Ren, Xiaoyi"]
[Black "Sun, Fanghui"]
[Result "1/2-1/2"]
[ECO "E01"]
[WhiteElo "2250"]
[BlackElo "2182"]
[Annotator "RC"]
[PlyCount "57"]
[EventDate "2022.09.07"]
[EventType "team-tourn"]
[EventCountry "CHN"]
[SourceTitle "playchess.com"]
[Source "ChessBase"]
[SourceQuality "1"]
[TimeControl "1500+10"]

1. d4 {[%emt 0:00:05]} Nf6 {[%emt 0:00:03]} 2. c4 {[%emt 0:00:07]} e6 {[%emt 0:00:08]} 3. Nf3 {[%emt 0:00:04]} d5 {[%emt 0:00:12]} 4. g3 {[%emt 0:00:11]} dxc4 {[%emt 0:00:51]} 5. Qa4+ {[%emt 0:02:32]} Nbd7 {[%emt 0:01:10]} 6. Qxc4 {[%emt 0:00:05]} a6 {[%emt 0:01:48]} 7. Qd3 {[%emt 0:00:47]} c5 {[%emt 0:01:01]} 8. Bg2 {[%emt 0:00:57]} b5 {[%emt 0:01:17]} 9. dxc5 {[%emt 0:03:23]} Bxc5 {[%emt 0:00:09]} 10. Ng5 {[%emt 0:00:08]} Ra7 {[%emt 0:02:15]} 11. Nc3 {[%emt 0:00:08]} O-O {[%emt 0:00:17]} 12. O-O {[%emt 0:00:13]} Bb7 {[%emt 0:01:43]} 13. Bxb7 {[%emt 0:04:07]} Rxb7 {[%emt 0:00:04]} 14. Nge4 {[%emt 0:00:06]} Be7 {[%emt 0:02:48]} 15. Rd1 {[%emt 0:04:03]} Rc7 {[%emt 0:04:01]} 16. Bf4 {[%emt 0:03:03]} Rc6 {[%emt 0:02:01]} 17. Nxf6+ {[%emt 0:03:07]} Nxf6 {[%emt 0:00:08]} 18. Qxd8 {[%emt 0:00:06]} Rxd8 {[%emt 0:00:05]} 19. Rxd8+ {[%emt 0:00:05]} Bxd8 {[%emt 0:00:03]} 20. a4 {[%emt 0:00:03]} bxa4 {[%emt 0:02:34]} 21. Rxa4 {[%emt 0:00:07]} h6 {[%emt 0:00:28]} 22. Kg2 {[%emt 0:01:05]} Nd5 {[%emt 0:00:08]} 23. Nxd5 {[%emt 0:00:24]} exd5 {[%emt 0:00:02]} 24. Rd4 {[%emt 0:00:03]} Bf6 {[%emt 0:00:11]} 25. Rxd5 {[%emt 0:00:03]} Bxb2 {[%emt 0:00:05]} 26. Bd2 {[%emt 0:00:07]} Bc3 {[%emt 0:00:04]} 27. Bxc3 {[%emt 0:00:04]} Rxc3 {[%emt 0:00:03]} 28. Ra5 {[%emt 0:00:07]} Rc6 {[%emt 0:00:04]} 29. h4 {[%emt 0:00:14]} 1/2-1/2

[Event "Chinese League Div-A Rapid 2022"]
[Site "Fuling,Chongqing"]
[Date "2022.09.10"]
[Round "4.21"]
[White "Li, Haoyu"]
[Black "Chen, Yuan"]
[Result "1/2-1/2"]
[ECO "C08"]
[WhiteElo "2369"]
[BlackElo "2138"]
[Annotator "RC"]
[PlyCount "97"]
[EventDate "2022.09.07"]
[EventType "team-tourn"]
[EventCountry "CHN"]
[SourceTitle "playchess.com"]
[Source "ChessBase"]
[SourceQuality "1"]
[TimeControl "1500+10"]

1. e4 {[%emt 0:00:03]} c5 {[%emt 0:00:01]} 2. c3 {[%emt 0:00:07]} e6 {[%emt 0:00:36]} 3. d4 {[%emt 0:00:14]} d5 {[%emt 0:00:36]} 4. exd5 {[%emt 0:00:14]} exd5 {[%emt 0:00:13]} 5. Nf3 {[%emt 0:00:20]} Nf6 {[%emt 0:00:16]} 6. Bb5+ {[%emt 0:00:15]} Bd7 {[%emt 0:00:04]} 7. Bxd7+ {[%emt 0:00:46]} Nbxd7 {[%emt 0:00:02]} 8. O-O {[%emt 0:00:34]} Be7 {[%emt 0:00:01]} 9. dxc5 {[%emt 0:00:34]} Nxc5 {[%emt 0:00:04]} 10. Nbd2 {[%emt 0:00:24]} O-O {[%emt 0:00:08]} 11. Nb3 {[%emt 0:00:14]} Nce4 {[%emt 0:00:30]} 12. Bf4 {[%emt 0:00:40]} Re8 {[%emt 0:00:37]} 13. Qd3 {[%emt 0:00:18]} Qb6 {[%emt 0:01:06]} 14. Nfd4 {[%emt 0:00:45]} a6 {[%emt 0:01:49]} 15. Rad1 {[%emt 0:02:14]} Bf8 {[%emt 0:00:20]} 16. f3 {[%emt 0:00:38]} Nd6 {[%emt 0:00:48]} 17. Bxd6 {[%emt 0:01:11]} Bxd6 {[%emt 0:00:03]} 18. g3 {[%emt 0:02:27]} g6 {[%emt 0:02:22]} 19. Kg2 {[%emt 0:00:35]} Bf8 {[%emt 0:04:37]} 20. Rfe1 {[%emt 0:00:19]} Qc7 {[%emt 0:02:06]} 21. Qd2 {[%emt 0:00:36]} Nd7 {[%emt 0:01:00]} 22. Rxe8 {[%emt 0:00:33]} Rxe8 {[%emt 0:00:01]} 23. Re1 {[%emt 0:00:04]} Rxe1 {[%emt 0:00:21]} 24. Qxe1 {[%emt 0:00:02]} Ne5 {[%emt 0:00:20]} 25. Qe2 {[%emt 0:01:27]} Nc4 {[%emt 0:00:14]} 26. Nc1 {[%emt 0:01:20]} Na5 {[%emt 0:02:52]} 27. Ncb3 {[%emt 0:00:49]} Nc4 {[%emt 0:00:37]} 28. Nc1 {[%emt 0:00:04]} b5 {[%emt 0:01:43]} 29. Nd3 {[%emt 0:00:35]} Qd7 {[%emt 0:01:19]} 30. b3 {[%emt 0:03:37]} Nb6 {[%emt 0:00:50]} 31. Qe5 {[%emt 0:01:27]} Qc8 {[%emt 0:00:16]} 32. Ne2 {[%emt 0:00:45]} Qe6 {[%emt 0:01:07]} 33. f4 {[%emt 0:01:17]} Nd7 {[%emt 0:00:38]} 34. Qxe6 {[%emt 0:00:05]} fxe6 {[%emt 0:00:01]} 35. Kf3 {[%emt 0:00:46]} Kf7 {[%emt 0:00:10]} 36. Ke3 {[%emt 0:00:06]} Bd6 {[%emt 0:00:27]} 37. Nd4 {[%emt 0:00:26]} Nf6 {[%emt 0:00:35]} 38. h3 {[%emt 0:00:45]} Ne4 {[%emt 0:00:02]} 39. Ne2 {[%emt 0:00:04]} Bc7 {[%emt 0:00:35]} 40. g4 {[%emt 0:00:55]} Bb6+ {[%emt 0:00:22]} 41. Kf3 {[%emt 0:00:01]} Ba5 {[%emt 0:00:01]} 42. Ne5+ {[%emt 0:00:33]} Ke8 {[%emt 0:00:12]} 43. b4 {[%emt 0:00:26]} Bb6 {[%emt 0:00:13]} 44. g5 {[%emt 0:00:38]} Nd2+ {[%emt 0:00:41]} 45. Kg2 {[%emt 0:00:41]} Ne4 {[%emt 0:00:21]} 46. Kf3 {[%emt 0:00:06]} Nd2+ {[%emt 0:00:10]} 47. Kg2 {[%emt 0:00:02]} Ne4 {[%emt 0:00:38]} 48. Kf3 {[%emt 0:00:01]} Nd2+ {[%emt 0:00:19]} 49. Kg2 {[%emt 0:00:04]} 1/2-1/2

[Event "Chinese League Div-A Rapid 2022"]
[Site "Fuling,Chongqing"]
[Date "2022.09.10"]
[Round "4.22"]
[White "Zhang, Di"]
[Black "Ding, Liren"]
[Result "0-1"]
[ECO "D00"]
[WhiteElo "2108"]
[BlackElo "2808"]
[Annotator "TA"]
[PlyCount "76"]
[EventDate "2022.09.07"]
[EventType "team-tourn"]
[EventCountry "CHN"]
[SourceTitle "playchess.com"]
[Source "ChessBase"]
[SourceQuality "1"]
[TimeControl "1500+10"]

{[%evp 9,76,-4,0,0,0,-18,-9,-20,-15,-29,-32,-33,-30,-35,-17,-40,-41,-41,-43,-67,-67,-66,-61,-71,-66,-66,-58,-61,-58,-54,-43,-58,-35,-58,-58,-58,-58,-58,-58,-58,-58,-72,-47,-46,-50,-60,-47,-93,-91,-158,-158,-162,-157,-150,-141,-548,-541,-1182,-1184,-1181,-1175,-1111,-1086,-1060,-996,-5519,-5456,-5314,-1881]} 1. d4 {[%emt 0:00:02]} Nf6 {[%emt 0:00:03]} 2. Bg5 {[%emt 0:00:03]} d5 {[%emt 0:00:09]} 3. e3 {[%emt 0:00:05]} c5 {[%emt 0:00:01]} 4. Bxf6 {[%emt 0:01:08]} gxf6 {[%emt 0:00:11]} 5. c4 {[%emt 0:00:53]} cxd4 {[%emt 0:02:17]} (5... dxc4 {feels hotter.} 6. Bxc4 cxd4 7. exd4 Bg7) 6. Qxd4 {[%emt 0:01:52] D00: 1 d4 d5: Unusual lines.} dxc4 {[%emt 0:03:01]} 7. Qxd8+ {[%emt 0:01:04]} Kxd8 {[%emt 0:00:02]} 8. Bxc4 {[%emt 0:00:02] The position is equal.} e6 {[%emt 0:00:05]} 9. Ne2 {[%emt 0:00:30]} (9. Nc3 {looks sharper.} Rg8 10. Nge2 f5 11. Rd1+) 9... Bg7 {[%emt 0:00:43]} 10. Nbc3 {[%emt 0:00:59]} Ke7 {[%emt 0:00:02] [#]} 11. O-O $146 {[%emt 0:00:18]} ({Predecessor:} 11. e4 Bd7 12. O-O Nc6 13. Rad1 Rac8 14. Ng3 Rhd8 15. Be2 Bh6 16. Nh5 a6 17. Rd3 {0-1 (28) Almeida Saenz,A (2311)-Kamsky,G (2638) Greensboro 2016}) 11... Bd7 {[%emt 0:00:26]} 12. Nd4 {[%emt 0:02:08]} Nc6 {[%emt 0:03:45]} 13. Nxc6+ {[%emt 0:05:26]} Bxc6 {[%emt 0:01:31]} 14. e4 {[%emt 0:00:05]} Rac8 {[%emt 0:00:26][%cal Oc6e4]} 15. Be2 {[%emt 0:00:16]} Rhd8 {[%emt 0:00:31] White must now prevent ...Rd2.} 16. Rfd1 {[%emt 0:02:35] Inhibits Rd2.} Bh6 {[%emt 0:00:19][%cal Bg7h6,Bh6d2,Bd2e3,Be3d4][%mdl 32]} 17. Kf1 {[%emt 0:02:04]} Bd2 {[%emt 0:00:36]} 18. f3 {[%emt 0:01:15]} Rd4 {[%emt 0:01:24]} 19. Nb1 {[%emt 0:00:44]} Be3 {[%emt 0:00:29] [#] Strongly threatening ...Rxd1+.} 20. Na3 {[%emt 0:01:56]} Bd7 {[%emt 0:00:48]} 21. Rxd4 {[%emt 0:01:11]} Bxd4 {[%emt 0:00:01] A strong pair of Bishops.} 22. Rb1 {[%emt 0:00:02]} a6 {[%emt 0:01:32] Against Bb5} 23. Bd3 {[%emt 0:00:03]} h5 $36 {[%emt 0:00:47][%mdl 2048] Black has the initiative.} 24. h3 {[%emt 0:00:42]} h4 {[%emt 0:00:14]} 25. Ke2 {[%emt 0:00:05]} f5 {[%emt 0:01:29] Black is more active.} 26. exf5 {[%emt 0:00:35]} exf5 {[%emt 0:00:01]} 27. Nc2 {[%emt 0:00:01]} Ba7 {[%emt 0:00:02]} 28. Kf1 {[%emt 0:01:12]} (28. Ne1 $15 {deserves consideration.}) 28... Kf6 {[%emt 0:00:12]} 29. Rd1 {[%emt 0:00:06]} (29. b3 $142) 29... Be6 $17 {[%emt 0:00:23]} 30. b3 {[%emt 0:00:07]} Kg5 {[%emt 0:00:08]} 31. Ne1 {[%emt 0:01:02][%cal Od3c4]} Kf4 {[%emt 0:00:10]} 32. Bc4 $2 {[%emt 0:00:06][%mdl 8192] Loses the game.} (32. Bc2 $17 {is tougher.}) 32... Rxc4 $19 {[%emt 0:00:40] Black is clearly winning.} ({Inferior is} 32... Bxc4+ 33. bxc4 Rxc4 34. Rd7 $15) 33. g3+ {[%emt 0:00:33]} Kxg3 {[%emt 0:00:34]} 34. bxc4 {[%emt 0:00:01]} Bxc4+ {[%emt 0:00:01]} 35. Nd3 {[%emt 0:00:01]} Kxh3 {[%emt 0:00:13] aiming for ...Kg3.} 36. Ke2 {[%emt 0:00:13]} Kg2 {[%emt 0:00:18] [#] ( -> ...h3)} 37. Rc1 {[%emt 0:00:16]} Bxd3+ {[%emt 0:00:05]} 38. Kxd3 {[%emt 0:00:01]} h3 {[%emt 0:00:01] Weighted Error Value: White=0.56/Black=0.04 (flawless)} 0-1

[Event "Chinese League Div-A Rapid 2022"]
[Site "Fuling,Chongqing"]
[Date "2022.09.10"]
[Round "4.23"]
[White "Li, Chao b"]
[Black "Lu, Shanglei"]
[Result "1/2-1/2"]
[ECO "E04"]
[WhiteElo "2679"]
[BlackElo "2616"]
[Annotator "TA"]
[PlyCount "44"]
[EventDate "2022.09.07"]
[EventType "team-tourn"]
[EventCountry "CHN"]
[SourceTitle "playchess.com"]
[Source "ChessBase"]
[SourceQuality "1"]
[TimeControl "1500+10"]

{[%evp 15,44,7,0,2,4,8,25,10,10,24,18,8,6,6,12,18,18,24,5,0,0,0,0,0,0,0,0,0,0,0,0]} 1. d4 {[%emt 0:00:13]} Nf6 {[%emt 0:00:32]} 2. c4 {[%emt 0:00:02]} e6 {[%emt 0:00:27]} 3. g3 {[%emt 0:00:02]} d5 {[%emt 0:00:27]} 4. Bg2 {[%emt 0:00:02]} dxc4 {[%emt 0:00:57]} 5. Nf3 {[%emt 0:00:05]} c5 {[%emt 0:00:03]} 6. O-O {[%emt 0:03:10]} Nc6 {[%emt 0:00:06]} 7. Qa4 {[%emt 0:00:03]} Bd7 {[%emt 0:00:19]} 8. dxc5 {[%emt 0:00:40]} Na5 {[%emt 0:01:15]} 9. Qa3 $1 {[%emt 0:02:06][%mdl 4] now scores much better than the old 9.Qc2. E04: Open Catalan: 5 Nf3.} Rc8 {[%emt 0:01:16]} 10. b4 {[%emt 0:01:26]} cxb3 $1 {[%emt 0:00:30]} 11. axb3 {[%emt 0:00:02][%cal Ba2b3,Bb3b4][%mdl 32] White has an edge.} Rxc5 {[%emt 0:00:21]} 12. Bd2 {[%emt 0:04:00][%cal Rd2a5]} Nc6 {[%emt 0:00:55]} 13. Qb2 {[%emt 0:00:04][%mdl 1024] White has compensation.} Be7 {[%emt 0:01:39]} 14. b4 {[%emt 0:03:35] [#]} Rb5 $146 {[%emt 0:01:40]} ({Predecessor:} 14... Rh5 15. b5 Qb6 16. Nc3 Nd8 17. Be3 Bc5 18. Na4 Bxe3 19. Nxb6 Bxb6 20. Ne5 O-O {1-0 (52) Gelfand,B (2676)-Moradiabadi,E (2555) Chess.com INT 2020}) 15. Na3 {[%emt 0:01:48]} Rb6 {[%emt 0:01:38]} 16. b5 {[%emt 0:00:00] [#] Threatens to win with Nc4.} a6 {[%emt 0:02:50]} 17. Be3 {[%emt 0:01:56] The position is equal.} Bxa3 {[%emt 0:00:34]} 18. Qxa3 {[%emt 0:00:01]} Rxb5 {[%emt 0:00:04]} 19. Rfb1 {[%emt 0:00:56]} Ra5 {[%emt 0:02:19]} 20. Qb2 {[%emt 0:03:13]} Rb5 {[%emt 0:01:28]} 21. Qa3 {[%emt 0:00:03]} Ra5 {[%emt 0:01:00]} 22. Qb2 {[%emt 0:00:17]} Rb5 {[%emt 0:00:13] An interesting draw.  Weighted Error Value: White=0.00 (flawless) /Black=0.00 (flawless)} 1/2-1/2